[Event "Early-Titled-Tuesday-Blitz-February-27-2024"]
[Site "Chess.com"]
[Date "2024.02.27"]
[Round "8"]
[White "vovachesss"]
[Black "Susal_De_Silva"]
[Result "1-0"]
[WhiteElo "2774"]
[BlackElo "2621"]
[TimeControl "180+1"]
[EndTime "9:28:17 PST"]
[Termination "vovachesss won by resignation"]

1. e4 {[%clk 0:03:00.9]} 1... e5 {[%clk 0:02:58.8]} 2. f4 {[%clk 0:02:58.5]}
2... d5 {[%clk 0:02:57.8]} 3. exd5 {[%clk 0:02:58.6]} 3... exf4 {[%clk
0:02:57.9]} 4. Nf3 {[%clk 0:02:58.8]} 4... Nf6 {[%clk 0:02:57.6]} 5. Bc4 {[%clk
0:02:58]} 5... Bd6 {[%clk 0:02:56.9]} 6. O-O {[%clk 0:02:58.4]} 6... O-O {[%clk
0:02:57.5]} 7. Nc3 {[%clk 0:02:58.3]} 7... a6 {[%clk 0:02:55.2]} 8. a4 {[%clk
0:02:57.5]} 8... Re8 {[%clk 0:02:55.3]} 9. d4 {[%clk 0:02:57.7]} 9... h6 {[%clk
0:02:53.7]} 10. Ne5 {[%clk 0:02:57.8]} 10... Nbd7 {[%clk 0:02:51.1]} 11. Nxd7
{[%clk 0:02:51.3]} 11... Bxd7 {[%clk 0:02:51.3]} 12. Bxf4 {[%clk 0:02:51.5]}
12... Qe7 {[%clk 0:02:48]} 13. Qd2 {[%clk 0:02:48.1]} 13... Bxf4 {[%clk
0:02:35.2]} 14. Rxf4 {[%clk 0:02:49]} 14... Qd6 {[%clk 0:01:58.7]} 15. Raf1
{[%clk 0:02:46.9]} 15... Ng4 {[%clk 0:01:45.1]} 16. Bd3 {[%clk 0:01:55.3]} 16...
g5 {[%clk 0:01:35.8]} 17. Rxg4 {[%clk 0:01:55]} 17... Bxg4 {[%clk 0:01:35.6]}
18. Ne4 {[%clk 0:01:55.7]} 18... Rxe4 {[%clk 0:01:32.2]} 19. Bxe4 {[%clk
0:01:56.6]} 19... Re8 {[%clk 0:01:29.6]} 20. Qd3 {[%clk 0:01:10.3]} 20... b5
{[%clk 0:01:28.5]} 21. axb5 {[%clk 0:01:09.6]} 21... axb5 {[%clk 0:01:29.4]} 22.
c3 {[%clk 0:00:53.7]} 22... Kg7 {[%clk 0:01:24]} 23. b3 {[%clk 0:00:42]} 23...
Qe7 {[%clk 0:01:12.8]} 24. Bf3 {[%clk 0:00:41.6]} 24... Bd7 {[%clk 0:00:56.2]}
25. Bh5 {[%clk 0:00:34]} 25... Rf8 {[%clk 0:00:51.2]} 26. Qg3 {[%clk 0:00:33]}
26... Qd6 {[%clk 0:00:38.1]} 27. Qe5+ {[%clk 0:00:24.2]} 27... f6 {[%clk
0:00:37.9]} 28. Qxd6 {[%clk 0:00:24.8]} 28... cxd6 {[%clk 0:00:38.5]} 29. Re1
{[%clk 0:00:25.4]} 29... Bf5 {[%clk 0:00:38.5]} 30. Re7+ {[%clk 0:00:24.9]}
30... Kg8 {[%clk 0:00:39.1]} 31. c4 {[%clk 0:00:23]} 31... bxc4 {[%clk
0:00:38.7]} 32. bxc4 {[%clk 0:00:23.9]} 32... Rc8 {[%clk 0:00:39.1]} 33. Be2
{[%clk 0:00:24.4]} 33... Ra8 {[%clk 0:00:37.5]} 34. c5 {[%clk 0:00:23]} 34...
Ra2 {[%clk 0:00:37.1]} 35. cxd6 {[%clk 0:00:17.7]} 35... Kf8 {[%clk 0:00:33.2]}
36. Bh5 {[%clk 0:00:17.1]} 36... Rd2 {[%clk 0:00:19.6]} 37. Rf7+ {[%clk
0:00:14.3]} 37... Kg8 {[%clk 0:00:20]} 38. d7 {[%clk 0:00:12.7]} 38... Bxd7
{[%clk 0:00:18.8]} 39. Rxd7 {[%clk 0:00:13.6]} 39... Rxd4 {[%clk 0:00:19.7]} 40.
d6 {[%clk 0:00:13.9]} 40... f5 {[%clk 0:00:19.4]} 41. Rd8+ {[%clk 0:00:13.7]}
41... Kg7 {[%clk 0:00:19.3]} 42. d7 {[%clk 0:00:14.3]} 42... g4 {[%clk 0:00:19]}
43. Kf2 {[%clk 0:00:13.3]} 43... Kf6 {[%clk 0:00:14.7]} 44. Ke3 {[%clk
0:00:10.5]} 44... Rd1 {[%clk 0:00:13.9]} 45. Rf8+ {[%clk 0:00:06.8]} 45... Ke7
{[%clk 0:00:14.4]} 46. d8=Q+ {[%clk 0:00:06.5]} 46... Rxd8 {[%clk 0:00:14.6]}
47. Rxd8 {[%clk 0:00:07.4]} 47... Kxd8 {[%clk 0:00:15.5]} 48. Kf4 {[%clk
0:00:08]} 48... g3 {[%clk 0:00:16]} 49. hxg3 {[%clk 0:00:07.8]} 49... Ke7 {[%clk
0:00:15]} 50. Kxf5 {[%clk 0:00:08.7]} 50... Kf8 {[%clk 0:00:14.3]} 51. Kg6
{[%clk 0:00:09.6]} 1-0

[Event "Early-Titled-Tuesday-Blitz-February-27-2024"]
[Site "Chess.com"]
[Date "2024.02.27"]
[Round "8"]
[White "KhazhatulyAlikhan"]
[Black "sotochess"]
[Result "0-1"]
[WhiteElo "2442"]
[BlackElo "2632"]
[TimeControl "180+1"]
[EndTime "9:28:20 PST"]
[Termination "sotochess won on time"]

1. e4 {[%clk 0:02:58.7]} 1... d5 {[%clk 0:02:58.2]} 2. exd5 {[%clk 0:02:57.4]}
2... Qxd5 {[%clk 0:02:57.2]} 3. d4 {[%clk 0:02:54.6]} 3... c6 {[%clk 0:02:56]}
4. Nc3 {[%clk 0:02:54.1]} 4... Qa5 {[%clk 0:02:54.1]} 5. Nf3 {[%clk 0:02:50.4]}
5... Nf6 {[%clk 0:02:53.2]} 6. Bc4 {[%clk 0:02:48.2]} 6... Bg4 {[%clk
0:02:51.3]} 7. h3 {[%clk 0:02:48.7]} 7... Bh5 {[%clk 0:02:50.3]} 8. g4 {[%clk
0:02:49.3]} 8... Bg6 {[%clk 0:02:49]} 9. Ne5 {[%clk 0:02:49.9]} 9... Nbd7 {[%clk
0:02:48.7]} 10. Nxg6 {[%clk 0:02:37.8]} 10... hxg6 {[%clk 0:02:47]} 11. Qf3
{[%clk 0:02:20.9]} 11... e6 {[%clk 0:02:43.2]} 12. Bf4 {[%clk 0:02:00]} 12...
Qb4 {[%clk 0:02:28.1]} 13. Bb3 {[%clk 0:01:47.9]} 13... Qxd4 {[%clk 0:02:26.5]}
14. Rd1 {[%clk 0:01:38.2]} 14... Qb4 {[%clk 0:02:21.1]} 15. O-O {[%clk
0:00:49.9]} 15... Rxh3 {[%clk 0:02:05.8]} 16. Qxh3 {[%clk 0:00:24.2]} 16... Qxf4
{[%clk 0:02:04.6]} 17. f3 {[%clk 0:00:20.2]} 17... O-O-O {[%clk 0:01:54]} 18.
Qh2 {[%clk 0:00:19.1]} 18... Bc5+ {[%clk 0:01:28.2]} 19. Kg2 {[%clk 0:00:19.1]}
19... Qg5 {[%clk 0:01:19.8]} 20. Qg3 {[%clk 0:00:17.2]} 20... Bb6 {[%clk
0:01:17.3]} 21. Rfe1 {[%clk 0:00:14.5]} 21... Bc7 {[%clk 0:01:15.7]} 22. Qf2
{[%clk 0:00:09.3]} 22... Rh8 {[%clk 0:01:10.9]} 23. Rh1 {[%clk 0:00:09.8]} 23...
Rxh1 {[%clk 0:01:00.3]} 24. Rxh1 {[%clk 0:00:10.7]} 24... Bb6 {[%clk 0:01:00.6]}
25. Rh8+ {[%clk 0:00:07.9]} 25... Kc7 {[%clk 0:00:52.6]} 26. Qg3+ {[%clk
0:00:07.7]} 26... Qe5 {[%clk 0:00:39.7]} 27. Qxe5+ {[%clk 0:00:08.1]} 27... Nxe5
{[%clk 0:00:40.3]} 28. Rh1 {[%clk 0:00:05.3]} 28... g5 {[%clk 0:00:39.3]} 29.
Re1 {[%clk 0:00:03.9]} 29... Ng6 {[%clk 0:00:38.5]} 30. Ne2 {[%clk 0:00:02.3]}
30... a5 {[%clk 0:00:34.5]} 31. c3 {[%clk 0:00:02]} 31... Be3 {[%clk 0:00:31.7]}
32. Bc2 {[%clk 0:00:01.3]} 32... Ne7 {[%clk 0:00:22.6]} 33. Rd1 {[%clk
0:00:01.6]} 33... Ned5 {[%clk 0:00:22.2]} 34. Rd3 {[%clk 0:00:02]} 34... b5
{[%clk 0:00:19.9]} 35. b3 {[%clk 0:00:02]} 35... Bb6 {[%clk 0:00:18.2]} 36. Bb1
{[%clk 0:00:02.5]} 36... Nd7 {[%clk 0:00:17.4]} 37. Rd1 {[%clk 0:00:02.9]} 37...
Ne3+ {[%clk 0:00:16.9]} 38. Kf2 {[%clk 0:00:01.5]} 38... Nxd1+ {[%clk
0:00:17.8]} 39. Ke1 {[%clk 0:00:02.4]} 39... Ne3 {[%clk 0:00:18]} 40. Kd2 {[%clk
0:00:02.6]} 40... Nd5 {[%clk 0:00:18.9]} 41. Be4 {[%clk 0:00:02.4]} 41... Nc5
{[%clk 0:00:18.7]} 42. c4 {[%clk 0:00:02.1]} 42... bxc4 {[%clk 0:00:18.8]} 43.
bxc4 {[%clk 0:00:02]} 43... Nb4 {[%clk 0:00:18.9]} 44. a3 {[%clk 0:00:01.3]}
44... Nxe4+ {[%clk 0:00:19.2]} 45. fxe4 {[%clk 0:00:02.2]} 45... Na6 {[%clk
0:00:19.9]} 46. Nc3 {[%clk 0:00:01.5]} 46... Nc5 {[%clk 0:00:20.1]} 47. e5
{[%clk 0:00:01.7]} 47... f6 {[%clk 0:00:20.1]} 48. exf6 {[%clk 0:00:01.6]} 48...
gxf6 {[%clk 0:00:21]} 49. Ke2 {[%clk 0:00:02.3]} 49... Kd6 {[%clk 0:00:21.5]}
50. Ke3 {[%clk 0:00:02.7]} 50... Ke5 {[%clk 0:00:22]} 51. Kf3 {[%clk 0:00:03.1]}
51... f5 {[%clk 0:00:22.1]} 52. Ne2 {[%clk 0:00:03.1]} 52... Ne4 {[%clk
0:00:22]} 53. a4 {[%clk 0:00:01.3]} 53... Nd2+ {[%clk 0:00:21.7]} 0-1

[Event "Early-Titled-Tuesday-Blitz-February-27-2024"]
[Site "Chess.com"]
[Date "2024.02.27"]
[Round "8"]
[White "mightysmasher"]
[Black "ljuks68"]
[Result "1-0"]
[WhiteElo "2544"]
[BlackElo "2410"]
[TimeControl "180+1"]
[EndTime "9:28:20 PST"]
[Termination "mightysmasher won by resignation"]

1. e4 {[%clk 0:03:00.9]} 1... e6 {[%clk 0:02:47.8]} 2. d4 {[%clk 0:02:59.9]}
2... d5 {[%clk 0:02:48.2]} 3. exd5 {[%clk 0:03:00.8]} 3... exd5 {[%clk
0:02:48.7]} 4. Nf3 {[%clk 0:02:58.5]} 4... Nf6 {[%clk 0:02:49.4]} 5. Bd3 {[%clk
0:02:58.8]} 5... c5 {[%clk 0:02:49.9]} 6. c3 {[%clk 0:02:57.1]} 6... Nc6 {[%clk
0:02:49.4]} 7. O-O {[%clk 0:02:56.1]} 7... Be7 {[%clk 0:02:50]} 8. Bg5 {[%clk
0:02:55.8]} 8... O-O {[%clk 0:02:49.8]} 9. dxc5 {[%clk 0:02:55.8]} 9... Bxc5
{[%clk 0:02:50]} 10. Nbd2 {[%clk 0:02:56.4]} 10... Bb6 {[%clk 0:02:48.7]} 11.
Qc2 {[%clk 0:02:56.1]} 11... h6 {[%clk 0:02:48.1]} 12. Bh4 {[%clk 0:02:56.3]}
12... Re8 {[%clk 0:02:48]} 13. Rfe1 {[%clk 0:02:55.4]} 13... Be6 {[%clk
0:02:41.7]} 14. Bf5 {[%clk 0:02:50.3]} 14... Rc8 {[%clk 0:02:37.7]} 15. Bxe6
{[%clk 0:02:48.7]} 15... fxe6 {[%clk 0:02:37.3]} 16. Qg6 {[%clk 0:02:44.4]}
16... Ne7 {[%clk 0:02:20]} 17. Bxf6 {[%clk 0:02:32.9]} 17... Nxg6 {[%clk
0:02:19.6]} 18. Bxd8 {[%clk 0:02:33]} 18... Rcxd8 {[%clk 0:02:20]} 19. Nb3
{[%clk 0:02:32.8]} 19... e5 {[%clk 0:02:14.2]} 20. Rad1 {[%clk 0:02:31.7]} 20...
e4 {[%clk 0:02:13.8]} 21. Nfd4 {[%clk 0:02:31.3]} 21... Nf4 {[%clk 0:02:13.8]}
22. a4 {[%clk 0:02:16.9]} 22... a6 {[%clk 0:02:07.1]} 23. a5 {[%clk 0:02:14.2]}
23... Ba7 {[%clk 0:02:06.6]} 24. Nc1 {[%clk 0:02:14.2]} 24... Ng6 {[%clk
0:01:58.1]} 25. Nce2 {[%clk 0:02:01]} 25... Ne5 {[%clk 0:01:56.2]} 26. Nf4
{[%clk 0:02:00.4]} 26... g5 {[%clk 0:01:25.5]} 27. Nh5 {[%clk 0:01:46.1]} 27...
Kf7 {[%clk 0:01:24.7]} 28. Ng3 {[%clk 0:01:44]} 28... Nd3 {[%clk 0:01:18.2]} 29.
Re2 {[%clk 0:01:42.9]} 29... Bxd4 {[%clk 0:01:15.8]} 30. cxd4 {[%clk 0:01:43.8]}
30... Kg6 {[%clk 0:01:12.7]} 31. h3 {[%clk 0:01:41.1]} 31... Rc8 {[%clk
0:01:12.6]} 32. Nf1 {[%clk 0:01:38.4]} 32... Rc4 {[%clk 0:01:09.6]} 33. Ne3
{[%clk 0:01:00.4]} 33... Rxd4 {[%clk 0:01:08.6]} 34. Nc2 {[%clk 0:00:58.2]}
34... Rc4 {[%clk 0:01:06.6]} 35. Na3 {[%clk 0:00:52.9]} 35... Rcc8 {[%clk
0:00:57.5]} 36. Nc2 {[%clk 0:00:47.5]} 36... h5 {[%clk 0:00:41.8]} 37. Ne3
{[%clk 0:00:30.4]} 37... Red8 {[%clk 0:00:38.1]} 38. Red2 {[%clk 0:00:27.5]}
38... d4 {[%clk 0:00:24.9]} 39. Nf1 {[%clk 0:00:26.7]} 39... g4 {[%clk 0:00:23]}
40. hxg4 {[%clk 0:00:26.1]} 40... hxg4 {[%clk 0:00:22.9]} 41. f3 {[%clk
0:00:25.5]} 41... gxf3 {[%clk 0:00:21.7]} 42. gxf3 {[%clk 0:00:25.7]} 42... Nf4
{[%clk 0:00:16.9]} 43. fxe4 {[%clk 0:00:25.1]} 43... Kf6 {[%clk 0:00:17]} 44.
Nh2 {[%clk 0:00:20.6]} 44... Rg8+ {[%clk 0:00:16.4]} 45. Kf1 {[%clk 0:00:20.5]}
45... Ke5 {[%clk 0:00:13.7]} 46. Rxd4 {[%clk 0:00:18.9]} 46... Rcf8 {[%clk
0:00:14]} 47. Nf3+ {[%clk 0:00:18.2]} 47... Ke6 {[%clk 0:00:14]} 48. Rd6+ {[%clk
0:00:18.3]} 48... Ke7 {[%clk 0:00:14.3]} 49. Rd7+ {[%clk 0:00:18.4]} 49... Ke8
{[%clk 0:00:14.7]} 50. Rd8+ {[%clk 0:00:18.5]} 50... Ke7 {[%clk 0:00:15.2]} 51.
Rxf8 {[%clk 0:00:17.5]} 51... Rxf8 {[%clk 0:00:14.9]} 52. Kf2 {[%clk 0:00:17.7]}
52... Ne6 {[%clk 0:00:14.1]} 53. Ke3 {[%clk 0:00:17.6]} 53... Nc5 {[%clk
0:00:13.7]} 54. b4 {[%clk 0:00:16.8]} 54... Ne6 {[%clk 0:00:12.1]} 55. Ne5
{[%clk 0:00:16.6]} 55... Rh8 {[%clk 0:00:11.3]} 56. Ng6+ {[%clk 0:00:15.2]} 1-0

[Event "Early-Titled-Tuesday-Blitz-February-27-2024"]
[Site "Chess.com"]
[Date "2024.02.27"]
[Round "8"]
[White "guillembaches"]
[Black "Bkmzzzzz"]
[Result "1-0"]
[WhiteElo "2528"]
[BlackElo "2397"]
[TimeControl "180+1"]
[EndTime "9:28:23 PST"]
[Termination "guillembaches won on time"]

1. d4 {[%clk 0:03:00.9]} 1... d5 {[%clk 0:03:00]} 2. Nf3 {[%clk 0:03:01.5]} 2...
e6 {[%clk 0:02:59]} 3. c4 {[%clk 0:03:00.2]} 3... dxc4 {[%clk 0:02:59.9]} 4. e3
{[%clk 0:02:59.8]} 4... Nf6 {[%clk 0:02:59.3]} 5. Bxc4 {[%clk 0:03:00]} 5... c5
{[%clk 0:02:59.9]} 6. O-O {[%clk 0:02:59.2]} 6... a6 {[%clk 0:02:59.7]} 7. dxc5
{[%clk 0:02:59.3]} 7... Bxc5 {[%clk 0:02:58.3]} 8. Qxd8+ {[%clk 0:02:58.6]} 8...
Kxd8 {[%clk 0:02:59.2]} 9. Nbd2 {[%clk 0:02:57.1]} 9... Ke7 {[%clk 0:02:58]} 10.
Nb3 {[%clk 0:02:56.7]} 10... Bd6 {[%clk 0:02:56.1]} 11. Rd1 {[%clk 0:02:51.5]}
11... b5 {[%clk 0:02:55.1]} 12. Be2 {[%clk 0:02:51.1]} 12... Bb7 {[%clk
0:02:55.6]} 13. Na5 {[%clk 0:02:42.6]} 13... Bd5 {[%clk 0:02:52.1]} 14. Nd2
{[%clk 0:02:40.5]} 14... Nc6 {[%clk 0:02:36.9]} 15. Nxc6+ {[%clk 0:02:34.7]}
15... Bxc6 {[%clk 0:02:37.8]} 16. f3 {[%clk 0:02:34.3]} 16... Bc5 {[%clk
0:02:35.9]} 17. Nb3 {[%clk 0:02:33.5]} 17... Bb6 {[%clk 0:02:34.9]} 18. Bd2
{[%clk 0:02:30.3]} 18... Nd5 {[%clk 0:02:28]} 19. Kf2 {[%clk 0:02:26.4]} 19...
Rhd8 {[%clk 0:02:26.1]} 20. Rac1 {[%clk 0:02:26]} 20... Rac8 {[%clk 0:02:19.3]}
21. Nc5 {[%clk 0:02:25.6]} 21... a5 {[%clk 0:01:46.9]} 22. a3 {[%clk 0:02:08.8]}
22... b4 {[%clk 0:01:40.7]} 23. e4 {[%clk 0:01:55.4]} 23... bxa3 {[%clk
0:00:35.4]} 24. bxa3 {[%clk 0:01:44.1]} 24... Nf6 {[%clk 0:00:33.2]} 25. Be3
{[%clk 0:01:36]} 25... Rxd1 {[%clk 0:00:32.5]} 26. Bxd1 {[%clk 0:01:36.2]} 26...
Nd7 {[%clk 0:00:19.7]} 27. Nxd7 {[%clk 0:01:25.4]} 27... Bxe3+ {[%clk
0:00:20.6]} 28. Kxe3 {[%clk 0:01:25]} 28... Kxd7 {[%clk 0:00:18]} 29. Kd4 {[%clk
0:01:15.3]} 29... f6 {[%clk 0:00:17]} 30. Rc5 {[%clk 0:01:11.7]} 30... Ra8
{[%clk 0:00:16.5]} 31. Bb3 {[%clk 0:01:07.9]} 31... Ra6 {[%clk 0:00:14.9]} 32.
f4 {[%clk 0:01:00.8]} 32... Rb6 {[%clk 0:00:12.2]} 33. Bc4 {[%clk 0:00:56.3]}
33... a4 {[%clk 0:00:12.3]} 34. g3 {[%clk 0:00:51.6]} 34... Rb2 {[%clk
0:00:11.8]} 35. Bxe6+ {[%clk 0:00:50.8]} 35... Kd6 {[%clk 0:00:10.8]} 36. e5+
{[%clk 0:00:47.5]} 36... fxe5+ {[%clk 0:00:10.7]} 37. fxe5+ {[%clk 0:00:47.8]}
37... Kxe6 {[%clk 0:00:10.9]} 38. Rxc6+ {[%clk 0:00:48.1]} 38... Kf5 {[%clk
0:00:11.5]} 39. Rc7 {[%clk 0:00:41.7]} 39... Rxh2 {[%clk 0:00:11.2]} 40. Rxg7
{[%clk 0:00:39]} 40... Rd2+ {[%clk 0:00:11.8]} 41. Kc4 {[%clk 0:00:35.6]} 41...
Kxe5 {[%clk 0:00:11.5]} 42. Rxh7 {[%clk 0:00:28.6]} 42... Rb2 {[%clk 0:00:11.6]}
43. Re7+ {[%clk 0:00:21.3]} 43... Kd6 {[%clk 0:00:11.3]} 44. Re3 {[%clk
0:00:20.4]} 44... Kc6 {[%clk 0:00:10]} 45. g4 {[%clk 0:00:19.5]} 45... Rg2
{[%clk 0:00:08.4]} 46. Re4 {[%clk 0:00:19.7]} 46... Rb2 {[%clk 0:00:07.5]} 47.
g5 {[%clk 0:00:18.8]} 47... Rb3 {[%clk 0:00:07.8]} 48. Rg4 {[%clk 0:00:15.5]}
48... Rb7 {[%clk 0:00:01.2]} 49. g6 {[%clk 0:00:15]} 49... Rg7 {[%clk
0:00:01.2]} 50. Kb4 {[%clk 0:00:15.4]} 50... Kd5 {[%clk 0:00:01.2]} 51. Kxa4
{[%clk 0:00:15.5]} 51... Kc5 {[%clk 0:00:01.3]} 52. Kb3 {[%clk 0:00:15.4]} 52...
Rc7 {[%clk 0:00:01.2]} 53. g7 {[%clk 0:00:13.8]} 1-0

[Event "Early-Titled-Tuesday-Blitz-February-27-2024"]
[Site "Chess.com"]
[Date "2024.02.27"]
[Round "8"]
[White "aistrel"]
[Black "tsaruk_maks"]
[Result "0-1"]
[WhiteElo "2541"]
[BlackElo "2739"]
[TimeControl "180+1"]
[EndTime "9:28:25 PST"]
[Termination "tsaruk_maks won by checkmate"]

1. d4 {[%clk 0:02:54]} 1... Nf6 {[%clk 0:02:58.8]} 2. Nc3 {[%clk 0:02:53.2]}
2... e6 {[%clk 0:02:59.7]} 3. e4 {[%clk 0:02:51]} 3... d5 {[%clk 0:03:00.6]} 4.
e5 {[%clk 0:02:47.2]} 4... Nfd7 {[%clk 0:03:01]} 5. f4 {[%clk 0:02:47.9]} 5...
c5 {[%clk 0:03:00.6]} 6. Nf3 {[%clk 0:02:48.8]} 6... Nc6 {[%clk 0:03:01]} 7. Be3
{[%clk 0:02:47.8]} 7... a6 {[%clk 0:03:00.4]} 8. Ne2 {[%clk 0:02:47.8]} 8... b5
{[%clk 0:03:00]} 9. c3 {[%clk 0:02:48.4]} 9... Rb8 {[%clk 0:02:56.3]} 10. a3
{[%clk 0:02:48]} 10... a5 {[%clk 0:02:56.6]} 11. g4 {[%clk 0:02:47.3]} 11... b4
{[%clk 0:02:55.6]} 12. axb4 {[%clk 0:02:46.4]} 12... axb4 {[%clk 0:02:54]} 13.
f5 {[%clk 0:02:46.9]} 13... bxc3 {[%clk 0:02:53.2]} 14. bxc3 {[%clk 0:02:47.3]}
14... cxd4 {[%clk 0:02:54]} 15. cxd4 {[%clk 0:02:48.2]} 15... Bb4+ {[%clk
0:02:53.9]} 16. Kf2 {[%clk 0:02:48.9]} 16... O-O {[%clk 0:02:50.5]} 17. Nf4
{[%clk 0:02:49.4]} 17... Qe8 {[%clk 0:02:40.8]} 18. Qc1 {[%clk 0:02:37]} 18...
Ndxe5 {[%clk 0:02:31]} 19. Nxe5 {[%clk 0:01:23.6]} 19... Nxe5 {[%clk 0:02:30.1]}
20. dxe5 {[%clk 0:01:24.5]} 20... exf5 {[%clk 0:02:30.9]} 21. Bd4 {[%clk
0:01:01.4]} 21... fxg4 {[%clk 0:02:29.7]} 22. Bd3 {[%clk 0:00:58.1]} 22... Be6
{[%clk 0:02:14.3]} 23. Kg2 {[%clk 0:00:49.6]} 23... Qd8 {[%clk 0:02:06.8]} 24.
Qe3 {[%clk 0:00:43.9]} 24... Qh4 {[%clk 0:02:04.9]} 25. Rhf1 {[%clk 0:00:39.5]}
25... Be7 {[%clk 0:02:02.9]} 26. Ra2 {[%clk 0:00:37.4]} 26... Bg5 {[%clk
0:01:54.1]} 27. Qg3 {[%clk 0:00:33.7]} 27... Qh6 {[%clk 0:01:49.4]} 28. Ra7
{[%clk 0:00:29.8]} 28... Rb4 {[%clk 0:01:47.5]} 29. Nxe6 {[%clk 0:00:27.1]}
29... Qxe6 {[%clk 0:01:38.9]} 30. Qf2 {[%clk 0:00:25.2]} 30... Qh6 {[%clk
0:01:29.7]} 31. Kg1 {[%clk 0:00:19.5]} 31... Rxd4 {[%clk 0:01:27.9]} 32. Rxf7
{[%clk 0:00:17.4]} 32... Rf4 {[%clk 0:01:26.2]} 33. Rxf8+ {[%clk 0:00:14.1]}
33... Kxf8 {[%clk 0:01:25.8]} 34. Qc5+ {[%clk 0:00:14]} 34... Be7 {[%clk
0:01:22.3]} 35. Qc8+ {[%clk 0:00:12]} 35... Kf7 {[%clk 0:01:22.8]} 36. Qxg4
{[%clk 0:00:12]} 36... Rxf1+ {[%clk 0:01:21.7]} 37. Kxf1 {[%clk 0:00:12.9]}
37... Qc1+ {[%clk 0:01:08.3]} 38. Kg2 {[%clk 0:00:13.3]} 38... Qd2+ {[%clk
0:01:00.4]} 39. Be2 {[%clk 0:00:14]} 39... g6 {[%clk 0:00:54.3]} 40. Kf1 {[%clk
0:00:11.4]} 40... Kg7 {[%clk 0:00:44.5]} 41. Qe6 {[%clk 0:00:09.4]} 41... Bh4
{[%clk 0:00:27.8]} 42. Qd7+ {[%clk 0:00:06.4]} 42... Kh6 {[%clk 0:00:28.1]} 43.
Qg4 {[%clk 0:00:07.3]} 43... Qe1+ {[%clk 0:00:12.8]} 44. Kg2 {[%clk 0:00:08]}
44... Qf2+ {[%clk 0:00:12.7]} 45. Kh3 {[%clk 0:00:08.7]} 45... Bg5 {[%clk
0:00:13.2]} 46. Qf3 {[%clk 0:00:08.7]} 46... Qd4 {[%clk 0:00:10.5]} 47. Kg2
{[%clk 0:00:09.3]} 47... Qxe5 {[%clk 0:00:09.4]} 48. Qh3+ {[%clk 0:00:10.2]}
48... Kg7 {[%clk 0:00:09.6]} 49. Qd7+ {[%clk 0:00:11.1]} 49... Be7 {[%clk
0:00:10.3]} 50. Bg4 {[%clk 0:00:11.3]} 50... h5 {[%clk 0:00:08.5]} 51. Be6
{[%clk 0:00:11.9]} 51... Qe2+ {[%clk 0:00:07.9]} 52. Kg1 {[%clk 0:00:10.6]}
52... Kf6 {[%clk 0:00:06.4]} 53. Bh3 {[%clk 0:00:11.5]} 53... Bc5+ {[%clk
0:00:06.3]} 54. Kh1 {[%clk 0:00:10]} 54... Qf3+ {[%clk 0:00:07.1]} 55. Bg2
{[%clk 0:00:09.3]} 55... Qd1+ {[%clk 0:00:08]} 56. Bf1 {[%clk 0:00:09.7]} 56...
Qxf1# {[%clk 0:00:08.7]} 0-1

[Event "Early-Titled-Tuesday-Blitz-February-27-2024"]
[Site "Chess.com"]
[Date "2024.02.27"]
[Round "8"]
[White "rhungaski"]
[Black "jcmesafischer"]
[Result "0-1"]
[WhiteElo "2587"]
[BlackElo "2397"]
[TimeControl "180+1"]
[EndTime "9:28:26 PST"]
[Termination "jcmesafischer won on time"]

1. e4 {[%clk 0:03:00.9]} 1... c5 {[%clk 0:02:49.4]} 2. Nf3 {[%clk 0:03:00.1]}
2... d6 {[%clk 0:02:45.8]} 3. d4 {[%clk 0:02:59.6]} 3... cxd4 {[%clk 0:02:46.7]}
4. Nxd4 {[%clk 0:03:00]} 4... Nf6 {[%clk 0:02:47.2]} 5. Nc3 {[%clk 0:03:00.1]}
5... a6 {[%clk 0:02:47.7]} 6. Be2 {[%clk 0:03:00]} 6... e5 {[%clk 0:02:47.7]} 7.
Nb3 {[%clk 0:02:59.6]} 7... Be7 {[%clk 0:02:47.3]} 8. O-O {[%clk 0:02:59.3]}
8... Be6 {[%clk 0:02:47.1]} 9. Bf3 {[%clk 0:02:57.1]} 9... Nbd7 {[%clk
0:02:40.5]} 10. a4 {[%clk 0:02:54.6]} 10... O-O {[%clk 0:02:39.5]} 11. Re1
{[%clk 0:02:53.6]} 11... Nb6 {[%clk 0:02:33.7]} 12. Nd2 {[%clk 0:02:30.9]} 12...
Rc8 {[%clk 0:02:25.1]} 13. Nf1 {[%clk 0:02:29.4]} 13... Qc7 {[%clk 0:01:57.5]}
14. Ne3 {[%clk 0:01:39.1]} 14... Rfd8 {[%clk 0:01:56.4]} 15. Re2 {[%clk
0:01:27.8]} 15... Nc4 {[%clk 0:01:39.9]} 16. Ncd5 {[%clk 0:00:42.3]} 16... Bxd5
{[%clk 0:01:30.6]} 17. Nxd5 {[%clk 0:00:37.8]} 17... Nxd5 {[%clk 0:01:29.5]} 18.
Qxd5 {[%clk 0:00:38.1]} 18... h6 {[%clk 0:01:19.5]} 19. Bg4 {[%clk 0:00:28.2]}
19... Rb8 {[%clk 0:01:18.8]} 20. b3 {[%clk 0:00:19.1]} 20... Nb6 {[%clk
0:01:17.5]} 21. Qa5 {[%clk 0:00:19.6]} 21... Na8 {[%clk 0:01:14.3]} 22. Qxc7
{[%clk 0:00:19.1]} 22... Nxc7 {[%clk 0:01:15.2]} 23. c4 {[%clk 0:00:15]} 23...
a5 {[%clk 0:01:10.7]} 24. Ba3 {[%clk 0:00:12.3]} 24... b6 {[%clk 0:01:08.3]} 25.
Rd1 {[%clk 0:00:11.8]} 25... Na6 {[%clk 0:01:08.5]} 26. g3 {[%clk 0:00:10.4]}
26... Nc5 {[%clk 0:01:03.9]} 27. Rb1 {[%clk 0:00:06.1]} 27... g6 {[%clk
0:00:51.2]} 28. h4 {[%clk 0:00:06.2]} 28... h5 {[%clk 0:00:49.8]} 29. Bh3 {[%clk
0:00:06.3]} 29... Bf8 {[%clk 0:00:45.9]} 30. Kg2 {[%clk 0:00:05.7]} 30... Rb7
{[%clk 0:00:42.3]} 31. Bc1 {[%clk 0:00:05.8]} 31... Rc7 {[%clk 0:00:37.1]} 32.
Bg5 {[%clk 0:00:05.3]} 32... Be7 {[%clk 0:00:37.5]} 33. Bd2 {[%clk 0:00:04.1]}
33... Kh7 {[%clk 0:00:31.7]} 34. Bc3 {[%clk 0:00:03.1]} 34... Bf8 {[%clk
0:00:23]} 35. f3 {[%clk 0:00:02.8]} 35... f6 {[%clk 0:00:20.6]} 36. Rd2 {[%clk
0:00:01.9]} 36... Be7 {[%clk 0:00:13.7]} 37. Rd5 {[%clk 0:00:02.2]} 37... Rf8
{[%clk 0:00:12.3]} 38. Kf2 {[%clk 0:00:02.4]} 38... f5 {[%clk 0:00:12.1]} 39.
exf5 {[%clk 0:00:02.7]} 39... gxf5 {[%clk 0:00:12.8]} 40. Ke2 {[%clk 0:00:03]}
40... f4 {[%clk 0:00:12.6]} 41. g4 {[%clk 0:00:01.7]} 41... Rc6 {[%clk
0:00:08.1]} 42. gxh5 {[%clk 0:00:02.2]} 42... Bxh4 {[%clk 0:00:07.3]} 43. Bg4
{[%clk 0:00:02.8]} 43... Kh6 {[%clk 0:00:07]} 44. Bd2 {[%clk 0:00:03.2]} 44...
Bg5 {[%clk 0:00:06.6]} 45. Rh1 {[%clk 0:00:03.4]} 45... Rc7 {[%clk 0:00:06.8]}
46. Rb1 {[%clk 0:00:02.9]} 46... Be7 {[%clk 0:00:06.2]} 47. Be1 {[%clk
0:00:02.7]} 47... Nb7 {[%clk 0:00:05.8]} 48. Bf2 {[%clk 0:00:02.8]} 48... Rc6
{[%clk 0:00:05.5]} 49. Bg1 {[%clk 0:00:02.3]} 49... Nc5 {[%clk 0:00:03.3]} 50.
Bxc5 {[%clk 0:00:02]} 50... bxc5 {[%clk 0:00:03.3]} 51. Rbd1 {[%clk 0:00:01.4]}
51... Rb6 {[%clk 0:00:03.1]} 0-1